bitfinex-derivatives/quotes_SOLF0:USTF0_20250428
["timestamp","ask_amount","ask_price","bid_price","bid_amount"]
[1745862790178,6.8044,146.93,146.89,6.806]
[1745862790385,6.8044,146.93,146.9,6.8053]
[1745862791687,6.8047,146.92,146.9,6.8053]
[1745862792083,6.8047,146.92,146.89,6.8059]
[1745862792481,6.8052,146.91,146.89,6.8059]
[1745862792684,14.68985728,146.94,146.87,25.4]
[1745862792885,14.68985728,146.92,146.87,25.4]
[1745862793384,14.68985728,146.92,146.87,32.2069]
[1745862794082,6.8059,146.9,146.88,6.8064]
[1745862796887,6.8059,146.9,146.87,32.2068]
[1745862798191,6.8063,146.89,146.87,32.2068]
[1745862798382,14.68985728,146.9,146.87,25.4]
[1745862798988,6.8065,146.88,146.87,25.4]
[1745862799487,6.8071,146.87,146.84,27.504]
[1745862800387,14.68985728,146.9,146.84,27.504]
[1745862800891,6.8065,146.88,146.84,27.504]
[1745862801589,6.8065,146.88,146.85,6.8076]
[1745862801791,6.8063,146.89,146.84,27.504]
[1745862802186,6.8063,146.89,146.86,6.8071]
[1745862803291,6.8066,146.88,146.86,6.8071]
[1745862804692,6.8063,146.89,146.86,6.8071]
[1745862806793,6.8063,146.89,146.84,27.504]
[1745862806794,6.8063,146.89,146.87,6.807]
[1745862808495,6.8065,146.88,146.86,6.8072]
[1745862808996,14.68985728,146.9,146.86,6.8072]
[1745862809195,6.8063,146.89,146.86,6.8072]
[1745862809389,14.68985728,146.92,146.84,27.504]
[1745862809592,14.68985728,146.92,146.84,42.19385728]
[1745862809791,6.8054,146.91,146.84,42.19385728]
[1745862810497,6.8054,146.91,146.88,6.8062]
[1745862810998,6.8054,146.91,146.89,6.806]
[1745862811200,6.8056,146.9,146.84,42.19385728]
[1745862811394,14.68985728,146.92,146.84,42.19385728]
[1745862811799,2.1149,146.93,146.84,42.19385728]
[1745862811999,25.38,146.94,146.86,14.68985728]
[1745862812201,18.36006728,146.96,146.86,14.68985728]
[1745862812498,6.804,146.94,146.91,6.8047]
[1745862813300,6.8044,146.93,146.91,6.8047]
[1745862815195,18.36006728,146.96,146.92,6.8047]
[1745862815401,3.67021,146.96,146.9,14.68985728]
[1745862815599,3.67021,146.96,146.9,16.71575728]
[1745862815899,10.47331,146.96,146.93,6.8039]
[1745862816100,10.47331,146.96,146.93,32.1839]
[1745862816303,3.67021,146.96,146.94,6.8035]
[1745862817507,10.47311,146.96,146.94,6.8035]
[1745862817905,10.47311,146.96,146.93,32.184]
[1745862818204,10.47311,146.96,146.93,25.38]
[1745862819505,10.47311,146.96,146.93,32.184]
[1745862819703,10.47311,146.96,146.93,25.38]
[1745862819903,3.67021,146.96,146.94,6.8035]
[1745862820304,3.67021,146.96,146.93,25.38]
[1745862820504,10.47331,146.96,146.93,32.1839]
[1745862821104,3.67021,146.96,146.93,32.1839]
[1745862821406,6.8034,146.95,146.93,25.38]
[1745862821607,3.67021,146.96,146.93,25.38]
[1745862822497,6.8036,146.95,146.93,25.38]
[1745862823107,10.47311,146.96,146.93,32.1839]
[1745862823306,3.67021,146.96,146.93,25.38]
[1745862823807,3.61525775,146.96,146.93,25.38]
[1745862824008,10.41835775,146.96,146.93,32.184]
[1745862825508,6.8033,146.95,146.93,25.38]
[1745862826606,6.8037,146.94,146.93,25.38]
[1745862827007,3.61525775,146.96,146.93,25.38]
[1745862827308,6.8036,146.95,146.93,25.38]
[1745862827609,3.61525775,146.96,146.93,25.38]
[1745862827911,10.41825775,146.96,146.93,32.184]
[1745862828409,6.8033,146.95,146.93,32.184]
[1745862828610,6.8033,146.95,146.93,25.38]
[1745862829110,6.8033,146.95,146.93,32.184]
[1745862832107,6.8037,146.94,146.93,25.38]
[1745862833904,14.68985728,146.95,146.9,25.38]
[1745862834207,14.68985728,146.93,146.9,25.38]
[1745862835111,6.8049,146.92,146.9,25.38]
[1745862836513,6.8049,146.92,146.9,32.1856]
[1745862837412,6.8049,146.92,146.9,25.38]
[1745862838811,6.8051,146.91,146.9,25.38]
[1745862839508,14.68985728,146.93,146.9,25.38]
[1745862839713,6.8049,146.92,146.9,25.38]
[1745862840413,6.8051,146.91,146.9,25.38]
[1745862840813,14.68985728,146.93,146.9,25.38]
[1745862841013,6.8049,146.92,146.9,25.38]
[1745862842011,21.49435728,146.93,146.9,32.1856]
[1745862842210,14.68985728,146.93,146.9,32.1856]
[1745862842515,14.68985728,146.93,146.9,25.38]
[1745862842915,21.49415728,146.93,146.9,32.1853]
[1745862843117,16.70765728,146.95,146.9,25.38]
[1745862843417,6.804,146.94,146.91,6.8049]
[1745862844113,16.70765728,146.95,146.9,32.1855]
[1745862844916,6.8044,146.93,146.9,32.1855]
[1745862845318,16.70765728,146.95,146.91,6.8051]
[1745862845618,14.68985728,146.95,146.9,25.38]
[1745862845812,14.68985728,146.95,146.91,6.8049]
[1745862846013,21.49335728,146.95,146.9,25.38]
[1745862846418,14.68985728,146.95,146.91,6.8048]
[1745862846621,6.804,146.94,146.91,6.8048]
[1745862848920,6.8042,146.93,146.91,6.8048]
[1745862849430,6.8039,146.94,146.91,6.8048]
[1745862849727,14.68985728,146.95,146.9,32.1854]
[1745862849927,6.8042,146.94,146.9,25.38]
[1745862850130,14.68985728,146.95,146.91,6.8051]
[1745862850529,6.804,146.94,146.91,6.8051]
[1745862851729,6.804,146.94,146.92,6.8046]
[1745862851930,6.804,146.94,146.9,25.38]
[1745862852430,3.61525775,146.96,146.9,25.38]
[1745862853432,3.61525775,146.96,146.91,1.9588]
[1745862853634,3.61525775,146.96,146.91,16.64865728]
[1745862854434,3.61525775,146.96,146.95,6.8033]
[1745862858032,3.61525775,146.96,146.95,32.1633]
[1745862859626,3.61525775,146.96,146.95,25.36]
[1745862862332,10.41805775,146.96,146.95,25.36]
[1745862863138,3.61525775,146.96,146.95,25.36]
[1745862863342,2.1267,147.02,146.95,25.36]
[1745862863839,6.801,147.0,146.95,25.36]
[1745862864038,14.68985728,147.01,146.95,25.36]
[1745862864439,6.8022,146.98,146.95,25.36]
[1745862864739,14.68985728,147.01,146.95,32.163]
[1745862864937,6.8021,146.98,146.95,32.163]
[1745862868245,6.801,147.0,146.95,25.36]
[1745862868738,6.801,147.0,146.97,6.8021]
[1745862869938,6.8007,147.01,146.97,6.8021]
[1745862870134,6.8007,147.01,146.98,6.8019]
[1745862870341,6.8007,147.01,146.95,25.36]
[1745862870639,6.8007,147.01,146.97,6.8019]
[1745862872039,6.801,147.0,146.97,6.8019]
[1745862872441,6.801,147.0,146.98,6.8019]
[1745862872940,6.8007,147.01,146.98,6.8019]
[1745862873140,14.68985728,147.02,146.97,6.8022]
[1745862873341,6.8014,146.99,146.95,25.36]
[1745862873541,14.68985728,147.0,146.97,6.8022]
[1745862873741,14.68985728,147.0,146.95,25.36]
[1745862874039,14.68985728,147.02,146.95,25.36]
[1745862874846,14.68985728,147.02,146.98,6.8017]
[1745862875045,14.68985728,147.02,146.95,25.36]
[1745862875246,14.68985728,147.0,146.95,25.36]
[1745862875446,14.68985728,147.0,146.96,6.8026]
[1745862875637,14.68985728,147.0,146.95,25.36]
[1745862876549,14.68985728,147.0,146.95,32.1631]
[1745862876748,14.68985728,147.0,146.95,25.36]
[1745862877650,6.8022,146.98,146.95,32.1631]
[1745862878243,6.8017,146.99,146.95,32.1631]
[1745862878946,6.802,146.98,146.95,32.1631]
[1745862881747,6.8017,146.99,146.96,6.8028]
[1745862881948,14.68985728,147.0,146.95,25.36]
[1745862882252,6.8017,146.99,146.96,6.8028]
[1745862882552,14.68985728,147.0,146.95,25.36]
[1745862882853,6.8019,146.98,146.95,32.163]
[1745862883253,14.68985728,147.0,146.95,25.36]
[1745862883453,6.8018,146.99,146.96,6.8026]
[1745862883753,14.68985728,147.0,146.96,6.8026]
[1745862883950,6.802,146.98,146.95,32.163]
[1745862884353,14.68985728,147.0,146.95,32.163]
[1745862884549,14.68985728,147.0,146.95,25.36]
[1745862885656,14.68985728,147.0,146.95,32.163]
[1745862885954,25.36,147.03,146.95,25.36]
[1745862885955,14.68985728,147.02,146.95,25.36]
[1745862886353,6.8007,147.01,146.98,6.8017]
[1745862886558,14.68985728,147.02,146.95,25.36]
[1745862886757,6.8019,146.98,146.96,6.8026]
[1745862887055,14.68985728,147.02,146.95,25.36]
[1745862887356,14.68985728,147.02,146.96,6.8028]
[1745862887659,14.68985728,147.02,146.95,25.36]
[1745862887953,6.8021,146.98,146.95,25.36]
[1745862888160,14.68985728,147.02,146.95,25.36]
[1745862888557,6.8018,146.99,146.96,6.8026]
[1745862888857,14.68985728,147.02,146.96,6.8026]
[1745862889059,6.8021,146.98,146.95,32.1631]
[1745862889257,6.8021,146.98,146.95,25.36]
[1745862889457,14.68985728,147.0,146.95,25.36]
[1745862889658,6.8016,146.99,146.96,6.8024]
[1745862890654,6.802,146.98,146.95,32.1631]
[1745862891659,6.8016,146.99,146.96,6.8028]
[1745862894660,6.8019,146.98,146.96,6.8028]
[1745862895061,14.68985728,147.02,146.96,6.8028]
[1745862895362,6.8017,146.99,146.96,6.8028]
[1745862900764,6.802,146.98,146.96,6.8028]
[1745862901066,14.68985728,147.0,146.96,6.8028]
[1745862901264,6.8007,147.01,146.95,25.36]
[1745862901567,14.68985728,147.02,146.95,25.36]
[1745862901770,6.8005,147.01,146.98,6.8016]
[1745862902064,6.8005,147.01,146.95,25.36]
[1745862903261,6.801,147.0,146.95,25.36]
[1745862903467,14.68985728,147.02,146.97,6.802]
[1745862903967,6.8013,147.0,146.97,6.802]
[1745862907566,6.8015,146.99,146.97,6.802]
[1745862908765,6.8012,147.0,146.97,6.802]
[1745862909066,14.68985728,147.02,146.97,6.802]
[1745862909366,6.8015,146.99,146.97,6.802]
[1745862909968,6.8015,146.99,146.96,6.8026]
[1745862910569,6.8015,146.99,146.95,25.36]
[1745862910862,6.8015,146.99,146.96,6.8027]
[1745862911061,14.68985728,147.02,146.96,6.8027]
[1745862911260,14.68985728,147.02,146.97,6.8021]
[1745862912371,31.5401,147.06,146.97,6.8021]
[1745862912567,6.1801,147.06,146.98,14.68985728]
[1745862912871,14.68985728,147.07,146.99,25.34]
[1745862913070,14.68985728,147.07,147.01,6.8004]
[1745862913472,6.7989,147.05,147.02,6.8]
[1745862913766,14.68985728,147.07,146.99,25.34]
[1745862914172,6.799,147.05,146.99,25.34]
[1745862914670,6.799,147.05,147.02,6.7997]
[1745862914973,6.7983,147.06,147.02,6.7997]
[1745862916274,14.68985728,147.05,147.01,6.8002]
[1745862916775,6.7994,147.04,147.01,6.8002]
[1745862917473,14.68985728,147.05,146.99,25.34]
[1745862917680,14.68985728,147.03,146.98,25.34]
[1745862917976,6.8008,147.01,146.98,32.1419]
[1745862921382,14.68985728,147.01,146.95,25.34]
[1745862921984,14.68985728,147.01,146.96,6.8024]
[1745862921985,6.8015,146.99,146.96,6.8024]
[1745862922184,14.68985728,147.01,146.95,25.34]
[1745862922682,6.8012,147.0,146.97,6.8023]
[1745862923089,14.68985728,147.01,146.95,25.34]
[1745862923287,6.8017,146.99,146.96,6.8026]
[1745862923488,14.68985728,147.01,146.95,25.34]
[1745862923785,6.8021,146.98,146.95,32.1431]
[1745862924183,6.8021,146.98,146.96,6.8028]
[1745862924389,6.8021,146.98,146.95,25.34]
[1745862924888,6.8021,146.98,146.96,6.8028]
[1745862925787,21.49155728,146.99,146.96,6.8028]
[1745862926287,6.8019,146.98,146.95,32.1433]
[1745862926486,14.68985728,146.99,146.95,25.34]
[1745862926786,6.802,146.98,146.95,32.1431]
[1745862927692,6.802,146.98,146.96,6.8028]
[1745862928290,14.68985728,146.99,146.96,6.8028]
[1745862928490,14.68985728,146.99,146.95,32.1431]
[1745862928688,6.8021,146.98,146.95,32.1431]
[1745862929186,6.8026,146.97,146.95,25.34]
[1745862930287,6.8028,146.96,146.95,25.34]
[1745862930495,14.68985728,146.97,146.92,25.34]
[1745862930889,6.8031,146.96,146.92,25.34]
[1745862931188,6.8031,146.96,146.93,6.8041]
[1745862932095,16.72875728,146.99,146.92,25.34]
[1745862932593,6.8028,146.97,146.93,6.8038]
[1745862932792,2.0389,146.99,146.92,40.02985728]
[1745862933296,2.0389,146.99,146.95,6.803]
[1745862934192,6.8025,146.97,146.95,6.803]
[1745862934794,6.8021,146.98,146.92,40.02985728]
[1745862936193,6.8013,147.0,146.94,14.68985728]
[1745862936394,16.65345728,147.03,146.94,14.68985728]
[1745862937095,6.8013,147.0,146.94,14.68985728]
[1745862938190,16.65345728,147.03,146.94,14.68985728]
[1745862938396,14.68985728,147.01,146.93,1.987]
[1745862939298,16.65345728,147.03,146.94,14.68985728]
[1745862939898,6.8012,147.0,146.94,14.68985728]
[1745862940098,16.65345728,147.03,146.93,1.987]
[1745862940294,16.65345728,147.03,146.93,16.67685728]
[1745862940495,6.8016,146.99,146.96,6.8024]
[1745862940697,6.8016,146.99,146.93,16.67685728]
[1745862941596,6.8016,146.99,146.97,6.8021]
[1745862941800,6.8012,147.0,146.97,6.8021]
[1745862943396,14.68985728,147.01,146.96,32.1628]
[1745862943901,6.8017,146.99,146.96,32.1628]
[1745862944901,6.8017,146.99,146.97,6.8024]
[1745862945701,6.8017,146.99,146.96,32.1626]
[1745862946196,6.8006,147.01,146.96,40.04985728]
[1745862946396,6.8006,147.01,146.98,6.8016]
[1745862946695,6.8003,147.02,146.96,40.04985728]
[1745862946894,25.34,147.07,146.98,14.68985728]
[1745862947100,40.02985728,147.07,146.98,14.68985728]
[1745862947496,40.02985728,147.07,146.98,16.72275728]
[1745862947804,6.799,147.05,147.0,14.68985728]
[1745862948101,6.799,147.05,147.01,25.34]
[1745862948398,6.799,147.05,147.02,6.7998]
[1745862949901,6.1824,147.08,147.02,6.7998]
[1745862950094,6.1824,147.08,147.03,6.7996]
[1745862950302,6.7989,147.05,147.03,6.7996]
[1745862950902,6.7989,147.05,147.02,6.7998]
[1745862951102,6.7983,147.06,147.01,25.34]
[1745862951498,6.7983,147.06,147.03,6.7994]
[1745862952602,6.7983,147.06,147.01,25.34]
[1745862952603,6.7979,147.07,147.05,6.7987]
[1745862952801,1.65037,147.09,147.02,14.68985728]
[1745862953001,1.65037,147.09,147.02,16.79355728]
[1745862953296,1.65037,147.09,147.08,14.68985728]
[1745862953497,1.65037,147.09,147.08,40.02985728]
[1745862954302,64.39147261,147.17,147.1,14.68985728]
[1745862954705,6.7937,147.16,147.13,6.7949]
[1745862956207,79.08132989,147.18,147.12,25.34]
[1745862956707,6.7943,147.15,147.12,25.34]
[1745862957707,6.7945,147.14,147.12,25.34]
[1745862957904,14.68985728,147.16,147.1,6.7961]
[1745862958112,40.02985728,147.18,147.1,25.34]
[1745862958306,6.7943,147.15,147.12,6.7951]
[1745862958712,40.02985728,147.18,147.12,6.7951]
[1745862958915,6.7945,147.14,147.11,6.7957]
[1745862959612,6.7944,147.15,147.12,6.7953]
[1745862960713,6.7944,147.15,147.1,25.34]
[1745862960714,6.7946,147.14,147.11,6.7958]
[1745862961316,14.68985728,147.16,147.1,25.34]
[1745862962819,40.02985728,147.18,147.1,25.34]
[1745862963325,6.7938,147.16,147.11,14.68985728]
[1745862963516,5.9331,147.19,147.13,14.68985728]
[1745862963715,3.9947,147.19,147.14,25.34]
[1745862963918,10.7872,147.19,147.16,6.7936]
[1745862965117,6.7927,147.18,147.15,6.7939]
[1745862965415,14.68985728,147.23,147.14,25.34]
[1745862965720,14.68985728,147.23,147.16,6.7933]
[1745862965922,14.68985728,147.21,147.14,25.34]
[1745862966320,6.7925,147.19,147.16,6.7936]
[1745862966520,14.68985728,147.21,147.14,25.34]
[1745862966820,6.7925,147.19,147.16,6.7935]
[1745862967123,14.68985728,147.21,147.14,25.34]
[1745862967320,14.68985728,147.21,147.15,6.7936]
[1745862967321,6.7928,147.18,147.15,6.7936]
[1745862967621,14.68985728,147.21,147.14,25.34]
[1745862967824,25.32,147.24,147.17,6.7927]
[1745862967825,6.792,147.2,147.17,6.7927]
[1745862968520,6.7923,147.19,147.16,6.7934]
[1745862968720,14.68985728,147.21,147.14,25.34]
[1745862969023,14.68985728,147.19,147.12,25.32]
[1745862969415,6.7941,147.15,147.12,25.32]
[1745862970112,14.68985728,147.19,147.13,6.7946]
[1745862970623,6.7938,147.16,147.13,6.7946]
[1745862970919,14.68985728,147.19,147.12,32.1152]
[1745862971121,6.7941,147.15,147.12,32.1152]
[1745862972123,6.7938,147.16,147.13,6.7948]
[1745862973423,6.794,147.15,147.13,6.7948]
[1745862973716,14.68985728,147.19,147.13,6.7948]
[1745862974124,6.7938,147.16,147.13,6.7948]
[1745862974322,6.7938,147.16,147.14,6.7945]
[1745862975724,6.7933,147.17,147.14,6.7945]
[1745862975922,6.7933,147.17,147.12,25.32]
[1745862975923,4.0789,147.2,147.13,14.68985728]
[1745862976627,4.0789,147.2,147.16,6.7933]
[1745862977121,6.7923,147.19,147.16,6.7933]
[1745862977424,2.0718,147.22,147.16,25.32]
[1745862977927,6.7924,147.19,147.17,6.7928]
[1745862978922,6.7924,147.19,147.16,32.1133]
[1745862979922,6.7924,147.19,147.16,25.32]
[1745862981226,6.7919,147.2,147.16,25.32]
[1745862981625,2.0718,147.22,147.16,25.32]
[1745862981826,2.0718,147.22,147.17,6.7928]
[1745862982026,2.0718,147.22,147.16,25.32]
[1745862982325,6.7916,147.21,147.18,6.7922]
[1745862983126,6.7918,147.2,147.18,6.7922]
[1745862983325,2.0718,147.22,147.18,6.7922]
[1745862983727,6.7916,147.21,147.18,6.7922]
[1745862984227,6.7916,147.21,147.19,6.7922]
[1745862984527,6.7919,147.2,147.16,25.32]
[1745862984825,2.0718,147.22,147.17,6.7929]
[1745862985029,14.68985728,147.19,147.09,14.68985728]
[1745862985223,14.68985728,147.19,147.1,25.32]
[1745862985424,14.68985728,147.19,147.14,6.7943]
[1745862985725,14.68985728,147.17,147.08,489.26]
[1745862985926,14.68985728,147.17,147.09,25.32]
[1745862986329,6.7946,147.14,147.09,25.32]
[1745862987227,6.7946,147.14,147.12,6.7952]
[1745862990529,14.68985728,147.17,147.09,25.32]
[1745862991029,6.7946,147.14,147.12,6.7951]
[1745862991828,6.795,147.13,147.11,6.7958]
[1745862993534,14.68985728,147.17,147.09,40.00985728]
[1745862994032,4.0156,147.18,147.11,14.68985728]
[1745862994632,6.7938,147.16,147.13,6.7949]
[1745862995535,14.68985728,147.17,147.09,42.11065728]
[1745862995833,14.68985728,147.15,147.07,25.32]
[1745862996033,6.7954,147.12,147.1,6.796]
[1745862997134,6.7952,147.13,147.1,6.796]
[1745862997937,6.7952,147.13,147.11,6.7958]
[1745863001233,6.7955,147.12,147.1,6.7961]
[1745863002139,6.7952,147.13,147.09,25.32]
[1745863002335,25.47548728,147.17,147.09,25.32]
[1745863002535,6.7952,147.13,147.09,25.32]
[1745863002730,6.7952,147.13,147.1,6.796]
[1745863003136,6.7952,147.13,147.09,25.32]
[1745863003945,6.7952,147.13,147.11,6.7959]
[1745863004644,6.7952,147.13,147.1,6.7961]
[1745863004944,6.7955,147.12,147.1,6.7961]
[1745863007556,6.7952,147.13,147.11,6.7959]
[1745863007855,6.7952,147.13,147.09,25.32]
[1745863008256,6.7952,147.13,147.1,6.796]
[1745863008452,6.7955,147.12,147.1,6.796]
[1745863008658,23.45098728,147.14,147.07,6.7975]
[1745863008958,1.977,147.13,147.06,25.32]
[1745863009354,1.977,147.13,147.07,6.7976]
[1745863009755,1.977,147.13,147.07,6.7973]
[1745863010159,6.7966,147.1,147.07,6.7973]
[1745863010663,1.977,147.13,147.06,32.118]
[1745863010960,25.32,147.15,147.06,25.32]
[1745863011355,25.32,147.15,147.07,2.0821]
[1745863011551,25.32,147.15,147.08,23.45098728]
[1745863011758,6.7939,147.16,147.08,23.45098728]
[1745863012058,2.0245,147.17,147.08,23.45098728]
[1745863012258,6.7941,147.15,147.12,6.7952]
[1745863012458,2.0245,147.17,147.1,25.32]
[1745863012858,2.0245,147.17,147.12,6.7954]
[1745863013761,6.7945,147.14,147.12,6.7954]
[1745863015756,6.7945,147.14,147.11,6.7957]
[1745863016661,2.0245,147.17,147.1,32.1161]
[1745863016961,23.45098728,147.13,147.06,25.32]
[1745863017163,6.7963,147.11,147.07,6.7973]
[1745863019260,6.7965,147.1,147.07,6.7973]
[1745863019861,6.7961,147.11,147.07,6.7973]
[1745863020266,25.32,147.18,147.08,23.46059732]
[1745863020467,6.7941,147.15,147.08,23.46059732]
[1745863020666,25.32,147.18,147.08,23.46059732]
[1745863020857,25.32,147.18,147.11,6.7956]
[1745863021161,6.794,147.15,147.1,25.32]
[1745863021461,25.32,147.18,147.1,25.32]
[1745863021656,48.78059732,147.18,147.1,25.32]
[1745863022060,6.7951,147.13,147.1,25.32]
[1745863022965,48.78059732,147.18,147.07,29.4133]
[1745863023162,23.46059732,147.15,147.07,32.1175]
[1745863023366,6.7968,147.1,147.07,25.32]
[1745863024067,29.3718,147.14,147.07,25.32]
[1745863024269,29.3718,147.14,147.08,6.797]
[1745863024564,6.7966,147.1,147.05,25.32]
[1745863024756,31.395,147.14,147.05,25.32]
[1745863024962,23.46059732,147.12,147.05,25.32]
[1745863025458,6.7976,147.08,147.05,25.32]
[1745863025868,6.7977,147.07,147.05,25.32]
[1745863026666,6.7982,147.06,147.05,25.32]
[1745863027166,23.46059732,147.12,147.03,6.7995]
[1745863027365,23.46059732,147.12,147.02,25.32]
[1745863027768,6.7988,147.05,147.02,25.32]
[1745863027967,6.7988,147.05,147.02,32.1198]
[1745863028468,25.32,147.1,147.02,25.32]
[1745863028971,6.7982,147.06,147.04,6.7991]
[1745863029368,6.7982,147.06,147.02,25.32]
[1745863029770,6.7982,147.06,147.03,6.7992]
[1745863030267,6.7979,147.07,147.04,6.7991]
[1745863031471,25.32,147.1,147.03,6.7993]
[1745863031771,25.32,147.1,147.02,25.32]
[1745863031968,6.798,147.07,147.04,6.7988]
[1745863036377,6.7982,147.06,147.04,6.7988]
[1745863037275,6.7978,147.07,147.04,6.7988]
[1745863037873,6.7982,147.06,147.04,6.7988]
[1745863038078,25.32,147.1,147.04,6.7988]
[1745863038473,6.798,147.07,147.04,6.7988]
[1745863038769,25.32,147.1,147.04,6.7988]
[1745863038969,6.7981,147.07,147.04,6.7988]
[1745863039579,6.7983,147.06,147.04,6.7988]
[1745863039779,25.32,147.1,147.05,6.7986]
[1745863040179,6.7977,147.08,147.05,6.7986]
[1745863040475,25.32,147.1,147.02,25.32]
[1745863040680,25.96,147.13,147.02,48.78059732]
[1745863040979,6.7966,147.1,147.02,48.78059732]
[1745863041179,6.7966,147.1,147.08,6.797]
[1745863042179,6.7968,147.09,147.02,48.78059732]
[1745863042382,6.7968,147.09,147.02,25.32]
[1745863044888,6.7965,147.1,147.02,25.32]
[1745863045289,25.96,147.13,147.02,25.32]
[1745863045486,6.7966,147.1,147.02,25.32]
[1745863045888,6.7966,147.1,147.07,6.7975]
[1745863046891,6.7968,147.09,147.07,6.7975]
[1745863047391,25.96,147.13,147.02,25.32]
[1745863048192,6.7964,147.1,147.08,6.797]
[1745863049593,6.7964,147.1,147.07,6.7975]
[1745863050997,6.7968,147.09,147.07,6.7975]
[1745863054693,6.7966,147.1,147.07,6.7975]
[1745863056498,6.7968,147.09,147.07,6.7975]
[1745863056801,6.7974,147.08,147.06,32.758]
[1745863057003,6.7974,147.08,147.06,25.96]
[1745863058003,6.7977,147.07,147.06,25.96]
[1745863058301,6.7977,147.07,147.04,6.7988]
[1745863058902,40.62384078,147.13,147.05,14.66384078]
[1745863058903,25.96,147.13,147.05,14.66384078]
[1745863059504,6.7969,147.09,147.06,6.7982]
[1745863060803,6.7974,147.08,147.06,6.7982]
[1745863061100,14.66384078,147.12,147.03,40.62384078]
[1745863061304,6.7977,147.08,147.03,40.62384078]
[1745863061601,6.7977,147.08,147.05,6.7986]
[1745863064511,6.7979,147.07,147.04,6.7989]
[1745863066010,6.7979,147.07,147.05,6.7986]
[1745863067210,6.7983,147.06,147.03,25.96]
[1745863067709,6.7983,147.06,147.03,32.7592]
[1745863067911,6.7983,147.06,147.03,25.96]
[1745863068310,6.7983,147.06,147.04,6.7989]
[1745863070213,14.66384078,147.1,147.03,6.7994]
[1745863070713,6.7987,147.05,147.03,6.7994]
[1745863071214,14.66384078,147.1,147.03,6.7994]
[1745863071514,6.7986,147.06,147.03,6.7994]
[1745863072811,14.66384078,147.1,147.04,6.7991]
[1745863073016,14.66384078,147.1,147.02,25.96]
[1745863074413,6.7985,147.06,147.04,6.7987]
[1745863078919,14.66384078,147.1,147.05,6.7987]
[1745863079118,14.66384078,147.1,147.02,25.96]
[1745863079421,6.7975,147.08,147.06,6.7982]
[1745863080421,6.7977,147.07,147.05,6.7985]
[1745863080719,14.66384078,147.1,147.05,6.7985]
[1745863081012,6.7975,147.08,147.05,6.7985]
[1745863081423,6.7975,147.08,147.06,6.7981]
[1745863081718,25.96,147.13,147.05,14.66384078]
[1745863082020,6.7966,147.1,147.08,6.7971]
[1745863082321,6.7966,147.1,147.05,14.66384078]
[1745863083317,6.7966,147.1,147.08,6.7972]
[1745863086118,6.796,147.11,147.09,6.7967]
[1745863086827,25.96,147.13,147.06,25.96]
[1745863087427,6.7966,147.1,147.08,6.7973]
[1745863087927,6.7966,147.1,147.07,6.7975]
[1745863089026,6.7966,147.1,147.08,6.7972]
[1745863090628,6.7961,147.11,147.08,6.7972]
[1745863090827,25.96,147.13,147.08,6.7972]
[1745863091528,6.7963,147.11,147.08,6.7972]
[1745863092025,6.7964,147.1,147.08,6.7972]
[1745863093328,6.7964,147.1,147.07,6.7975]
[1745863093830,6.7969,147.09,147.07,6.7975]
[1745863094932,6.7966,147.1,147.08,6.7973]
[1745863099636,6.7962,147.11,147.08,6.7969]
[1745863100027,25.96,147.13,147.08,6.7969]
[1745863100328,6.7961,147.11,147.08,6.7969]